Cogmind - Beta 16 @@@ ROGUE MODE // 2025.12.28 @ 16:06:33 Player: Compilatron Result: Destroyed by G-34 Mercenary with Small Laser Performance ------------- Evolutions (1) 500 Regions Visited (2) 400 Robots Destroyed (21) 105 Value Destroyed (479) 479 Prototype IDs (0) 0 Alien Tech Used (0) 0 Bonus (0) 0 TOTAL SCORE: 1484 Bonus ------- None Cogmind --------- Core Integrity 0/400 Matter 300/300 Energy 100/100 System Corruption 2% Temperature Cool (12) Movement Core (400) Ox7 Location -9/Materials Parts ------- > --- POWER (1) -------- (None) > --- PROPULSION (2) --- (None) > --- UTILITY (4) ------ Large Storage Unit > --- WEAPON (2) ------- Mining Claw > --- INVENTORY (15) --- Light Treads Aluminum Leg Aluminum Leg Compact Wheel Medium Storage Unit High-capacity Matter Pod (145) Visual Processing Unit Medium Laser Light Assault Rifle EMP Blaster Datajack Mining Laser Peak State ------------ > --- POWER ------------ Light Ion Engine > --- PROPULSION ------- Light Treads Improved Treads > --- UTILITY ---------- Large Storage Unit Structural Scanner > --- WEAPON ----------- Medium Laser Assault Rifle > --- INVENTORY -------- Ion Engine Light Treads Aluminum Leg Aluminum Leg Compact Wheel Medium Storage Unit High-capacity Matter Pod Visual Processing Unit Light Assault Rifle EMP Blaster Mining Laser [Rating: 9] Favorites ----------- Power Light Ion Engine Engine Light Ion Engine Propulsion Light Treads Treads Light Treads Leg Aluminum Leg Utility Large Storage Unit Device Structural Scanner Storage Large Storage Unit Weapon Assault Rifle Energy Gun Medium Laser Ballistic Gun Assault Rifle Special Weapon Mining Laser Slashing Weapon Mining Claw Build | -11 -10 -9 ------- Run | Yrd Mat Mat Slots Evolved 2 | . . 2 Power . | . . . Propulsion . | . . . Utility 2 | . . 2 Weapon . | . . . Parts Attached 11 | 2 5 4 Power 1 | . . 1 Engine 1 | . . 1 Core . | . . . Reactor . | . . . Propulsion 3 | 2 . 1 Treads 3 | 2 . 1 Leg . | . . . Wheel . | . . . Hover . | . . . Flight . | . . . Utility 3 | . 2 1 Device 1 | . . 1 Storage 2 | . 2 . Processor . | . . . Hackware . | . . . Protection . | . . . Artifact . | . . . Weapon 4 | . 3 1 Energy Gun 1 | . 1 . Energy Cannon . | . . . Ballistic Gun 1 | . 1 . Ballistic Cannon . | . . . Launcher . | . . . Special Weapon 1 | . 1 . Impact Weapon . | . . . Slashing Weapon 1 | . . 1 Piercing Weapon . | . . . Special Melee Weapon . | . . . Unidentified Prototypes . | . . . Parts Lost 6 | . . 6 Power 2 | . . 2 Propulsion 2 | . . 2 Utility 1 | . . 1 Weapon 1 | . . 1 Highest Loss Streak 6 | . . 6 To Critical Strikes . | . . . Average Backups 7 | 6 6 10 Power . | 1 1 . Propulsion 3 | 4 3 3 Utility 1 | . 1 3 Weapon 1 | 1 1 3 Tool/Special . | . . . Unused Backups 14 | . 6 8 Power 3 | . 2 1 Propulsion 4 | . 1 3 Utility 4 | . 2 2 Weapon 2 | . 1 1 Tool/Special 1 | . . 1 Average Slot Usage (%) 81 | . 85 74 Engine 12 | . 14 10 Treads 25 | . 28 21 Device 3 | . . 10 Storage 12 | . 14 11 Energy Gun 10 | . 12 8 Ballistic Gun 12 | . 14 10 Special Weapon 1 | . 1 . Slashing Weapon 1 | . . 3 Peak Build Rating 9 | 6 7 9 Average Rating 6 | 6 6 8 On Entrance 6 | 6 6 7 Avg Prop Armor Cover (%) . | . . . Naked Turns . | . . . Heaviest Build 28 | 12 27 28 Greatest Support 43 | 40 40 43 Greatest Overweight (x) 7 | . . 7 Average Overweight (x) . | . . . Largest Inventory Capacity 15 | 8 15 15 Average Capacity 12 | 8 11 15 Most Carried 12 | 6 9 12 Average Carried 7 | 6 6 10 Final Capacity 15 | 8 15 15 Final Carried 12 | 6 9 12 Class Distribution -------------------- 100% | Mutant Dominant Class ---------------- Mutant | -10/Materials Mutant | -9/Materials Resources | -11 -10 -9 ----------- Run | Yrd Mat Mat Matter Collected 578 | 200 278 100 Remotely . | . . . Salvage Created 599 | . 370 229 Parts 47 | . 33 14 Haulers Intercepted . | . . . Recyclers Shooed . | . . . Parts Field Recycled . | . . . Retrieved Matter . | . . . Parts Self-Destructed . | . . . Prevented . | . . . Parts Restored . | . . . Kills | -11 -10 -9 ------- Run | Yrd Mat Mat Combat Hostiles Destroyed 18 | . 12 6 Melee 4 | . . 4 Guns 14 | . 12 2 Classes Destroyed 5 | . 4 1 Worker 1 | . 1 . Watcher 2 | . 2 . Swarmer 7 | . 6 1 Grunt 10 | . 6 4 Brawler 1 | . . 1 Best Kill Streak 4 | . 4 2 Combat Bots Only 3 | . 3 2 Max Kills in Single Turn 2 | . 2 1 Gunslinging 1 | . 1 . Exploded . | . . . Melee 1 | . . 1 Uniques/NPCs Destroyed . | . . . Combat | -11 -10 -9 -------- Run | Yrd Mat Mat Hostile Shots Fired 162 | . 50 112 Missed 42 | . 13 29 Hits 120 | . 37 83 Melee 6 | . . 6 Projectile 114 | . 37 77 Critical Strikes 2 | . . 2 Damage Taken 1333 | . 373 960 Core 474 | . 63 411 Absorbed by Shields . | . . . Core Remaining (%) 87 | 100 74 . Volleys Fired 51 | . 36 15 Largest 2 | . 2 2 Hottest 120 | . 120 70 Shots Fired 98 | . 70 28 Gun 92 | . 64 28 Cannon . | . . . Launcher . | . . . Special 6 | . 6 . Kinetic 51 | . 36 15 Thermal 47 | . 34 13 Explosive . | . . . Electromagnetic . | . . . Robot Hit Streak 7 | . 6 7 Robot Miss Streak 5 | . 5 3 Penetration Max . | . . . Secondary Targets 2 | . 2 . Max Gunslinging Chain 1 | . 1 . Shots Hit Robots 56 | . 30 26 Core Hits 29 | . 19 10 Critical Kills . | . . . Critical Parts Destroyed 1 | . 1 . Critical Strikes 6 | . 5 1 Burn 5 | . 4 1 Destroy 1 | . 1 . Melee Attacks 18 | . . 18 Impact . | . . . Slashing 18 | . . 18 Piercing . | . . . Sneak Attacks . | . . . Combat Hostiles . | . . . Follow-up Attacks . | . . . Damage Inflicted 805 | . 422 383 Guns 598 | . 422 176 Cannons . | . . . Explosions . | . . . Melee 207 | . . 207 Ramming . | . . . Kinetic 278 | . 200 78 Thermal 320 | . 222 98 Explosive . | . . . Electromagnetic . | . . . Impact . | . . . Slashing 207 | . . 207 Piercing . | . . . Highest Corruption 2 | . . 2 Average Corruption 2 | . . 2 Corruption Purged . | . . . Corruption Blocked . | . . . Overload Shots . | . . . Overflow Damage . | . . . Projectiles . | . . . Explosions . | . . . Melee . | . . . Knockbacks . | . . . Impact . | . . . Kinetic . | . . . Secondary . | . . . Self-Inflicted Damage . | . . . Shots . | . . . Rammed . | . . . Targets Rammed . | . . . Kicked . | . . . Crushed . | . . . Highest Temperature 159 | . 159 18 Average Temperature 39 | . 44 11 Received Heat Transfer 510 | . 144 366 Siege Activations . | . . . Martial Activations . | . . . Shielding Activations . | . . . Robots Disrupted . | . . . Combat Hostiles . | . . . Robots Corrupted . | . . . Combat Hostiles . | . . . Parts Fried . | . . . Impact Corruptions . | . . . Robots Melted . | . . . Combat Hostiles . | . . . Parts Melted 4 | . 4 . Heat Transferred 1332 | . 962 370 Parts Sabotaged . | . . . Parts Stolen . | . . . Parts Stripped . | . . . Power Chain Reactions . | . . . Alert | -11 -10 -9 ------- Run | Yrd Mat Mat Maximum Alert Level . | . . . Low Security (%) 100 | 100 100 100 Level 1 . | . . . Level 2 . | . . . Level 3 . | . . . Level 4 . | . . . Level 5 . | . . . High Security . | . . . Max Security . | . . . Peak Influence 132 | . 132 60 Initial 35 | . . 35 Average 43 | . 57 17 Influence Increases 523 | . 351 172 Destroy 0b10 Robot/C 360 | . 240 120 Destroy 0b10 Robot/NC 15 | . 15 . Destroy Leader 74 | . 54 20 Successful Hack 6 | . 6 . Select Force Hacks 30 | . 30 . Destroy Structure 8 | . 6 2 Lose Combat Pursuer 30 | . . 30 Influence Decreases 483 | . 266 217 Entered New Map 50 | . . 50 Time Decay 373 | . 266 107 Lost Part 60 | . . 60 Squads Dispatched 4 | . 3 1 Investigation 2 | . 1 1 Extermination . | . . . Reinforcement 2 | . 2 . Assault . | . . . Garrison . | . . . Intercept . | . . . Searches Triggered . | . . . Construction Impeded . | . . . Haulers Reinforced . | . . . Active Scanning Responses . | . . . Cargo Convoy Interrupts . | . . . Stealth | -11 -10 -9 --------- Run | Yrd Mat Mat Distress Signals 2 | . 1 1 Communications Jammed . | . . . Distress Signals . | . . . Times Spotted 30 | . 19 11 Peak Tracking Total 7 | . 3 7 Tactical Retreats 2 | . . 2 Traps | -11 -10 -9 ------- Run | Yrd Mat Mat Traps Triggered . | . . . Indirectly . | . . . Trap Hack Attempts . | . . . Triggered . | . . . Disarmed . | . . . Reprogrammed . | . . . Reused . | . . . Traps Extracted . | . . . Installed . | . . . Triggered . | . . . Machines | -11 -10 -9 ---------- Run | Yrd Mat Mat Machines Disabled . | . . . Max in Single Turn . | . . . Machines Repaired . | . . . Machines Dismantled . | . . . Machines Sabotaged . | . . . Overloaded Fab Kills . | . . . Hacking | -11 -10 -9 --------- Run | Yrd Mat Mat Machines Accessed 5 | . 4 1 Terminals 4 | . 3 1 Fabricators . | . . . Repair Stations . | . . . Recycling Units 1 | . 1 . Scanalyzers . | . . . Garrison Access . | . . . Total Hacks 12 | . 9 3 Successful 6 | . 6 . Failed 6 | . 3 3 Catastrophic 1 | . 1 . Database Lockouts . | . . . Manual 9 | . 6 3 Terminals 11 | . 8 3 Fabricators . | . . . Repair Stations . | . . . Recycling Units 1 | . 1 . Scanalyzers . | . . . Garrison Access . | . . . Terminal Hacks 3 | . 3 . Terminal Index 1 | . 1 . Locate Traps 1 | . 1 . Zone Layout 1 | . 1 . Fabricator Hacks . | . . . Repair Station Hacks . | . . . Recycling Unit Hacks . | . . . Scanalyzer . | . . . Garrison Access Hacks . | . . . Unauthorized Hacks 3 | . 3 . Terminals 2 | . 2 . Track 1 | . 1 . Botnet 1 | . 1 . Fabricators . | . . . Repair Stations . | . . . Recycling Units 1 | . 1 . Tunnel 1 | . 1 . Scanalyzers . | . . . Garrison Access . | . . . Data Cores Recovered . | . . . Used . | . . . Hacking Detections 4 | . 3 1 Full Trace Events 1 | . . 1 Feedback Events . | . . . Feedback Blocked . | . . . Robot Schematics Acquired . | . . . Robots Built . | . . . Authchips . | . . . Time . | . . . Total Robot Build Rating . | . . . Part Schematics Acquired . | . . . Parts Built . | . . . Authchips . | . . . Time . | . . . Total Part Build Rating . | . . . Part Studies Acquired . | . . . Parts Repaired . | . . . Time . | . . . Parts Recycled . | . . . Recycled Matter . | . . . Retrieved Matter . | . . . Retrieved Components . | . . . Parts Scanalyzed . | . . . Part Schematics Acquired . | . . . Parts Damaged . | . . . Bothacking | -11 -10 -9 ------------ Run | Yrd Mat Mat Used RIF Installer . | . . . Robots Hacked . | . . . Non-combat . | . . . Combat . | . . . Robot Hacks Applied . | . . . Relay Couplers Released . | . . . Fabnet Peak Effective % . | . . . Robots Rewired . | . . . Allies Hacked . | . . . Hacks Repelled . | . . . Allies | -11 -10 -9 -------- Run | Yrd Mat Mat Total Allies . | . . . Largest Group . | . . . Highest-Rated Group . | . . . Highest-Rated Ally . | . . . Total Orders . | . . . Ally Attacks . | . . . Total Damage . | . . . Kills . | . . . Allies Corrupted . | . . . Allies Melted . | . . . Intel | -11 -10 -9 ------- Run | Yrd Mat Mat Active Infowar (turns) 300 | . . 300 Structural 300 | . . 300 Robot Analysis Total . | . . . Derelict Logs Recovered . | . . . Drone Launches . | . . . Drone Recoveries . | . . . Exploration | -11 -10 -9 ------------- Run | Yrd Mat Mat Turns Passed 957 | 3 633 321 Spaces Moved 419 | 1 298 120 Core 1 | . . 1 Treads 418 | 1 298 119 Legs . | . . . Wheels . | . . . Hover . | . . . Flight . | . . . Fastest Speed 160 | 160 160 160 Average Speed 160 | 160 160 162 Slowest Speed 400 | 160 160 400 Overloaded Moves . | . . . Propulsion Burnouts . | . . . Robots Hopped . | . . . Potential Cave-ins . | . . . Cave-ins Triggered . | . . . Exploration Rate (%) 21 | 1 44 18 Regions Visited 2 Branch Regions . Pre-discovered Areas 1 | . 1 . Known Exits Taken . | . . . Unknown Exits Taken 2 | 1 1 . Scrap Searched . | . . . Spaces Dug 6 | . 5 1 Terrain Destroyed 7 | . 6 1 Melee 1 | . . 1 Projectile 6 | . 6 . AOE . | . . . Terrain Rammed . | . . . Walls Destroyed . | . . . Machines Disabled . | . . . Actions | -11 -10 -9 --------- Run | Yrd Mat Mat Total 559 | 2 373 184 Wait 43 | . 22 21 Move 417 | . 297 120 Hop . | . . . Pick Up 13 | . 8 5 Fast Attach . | . . . Attach 3 | . 1 2 Detach . | . . . Swap 8 | 2 4 2 Drop 6 | . 5 1 Fire 51 | . 36 15 Melee 18 | . . 18 Ram . | . . . Kick . | . . . Crush . | . . . Escape Stasis . | . . . Rewire . | . . . Trap . | . . . Miscellaneous . | . . . Route ------- -11/Scrapyard -10/Materials -9/Materials (discovered 1 exit: [*Min]) History --------- Turn | Location | Event 4 | -11/Scrapyard | Discovered new exit (range 0) 4 | -11/Scrapyard | Entered Materials 305 | -10/Materials | Build established: Mutant 434 | -10/Materials | Discovered new exit (range 10) 637 | -10/Materials | Entered another Materials area 637 | -9/Materials | Evolved 2 slots: Utility x2 668 | -9/Materials | Discovered new exit (range 3) 944 | -9/Materials | Core integrity fell below 50% 953 | -9/Materials | Core integrity fell below 20% 958 | -9/Materials | Destroyed by G-34 Mercenary with Small Laser Last Messages --------------- M004. Dispatching Investigation squad. 00907_ G-34 Mercenary destroyed. 00915_ C-30 ARC bursts open, deploying its payload. 00915_ G-34 Mercenary unfolds itself. 00919_ Lgt. Ion Engine destroyed. 00919_ G-34 Mercenary destroyed. 00926_ W-16 Scout sends out distress signal. 00929_ R-06 Scavenger collects Heat Sink. 00932_ Imp. Treads destroyed. 00932_ System corrupted by crushing effect (+2). 00935_ B-36 Bruiser Lgt. Treads ripped off. 00935_ R-06 Scavenger collects Aluminum Leg. 00942_ Lgt. Treads destroyed. 00943_ Assault Rifle destroyed. 00944_ B-36 Bruiser destroyed. 00946_ Ion Engine destroyed. 00950_ Structural Scanner destroyed. 00953_ S-10 Pest destroyed. 00954_ Acquired 19 matter. Map ----- +----------------------------------------------------+ | | | | | | | | | | | | | | | | | | | | | | | | | | | | | ?????????????????????????????????????????????????? | | ?????????????????????????????????????????????????? | | ??????????????????????????????####???????????????? | | ??????????????????????????????#####??????????????? | | ????????????################## !###??????????????? | | ????????????################## !##??????######### | | ???????????? !##??????######### | | ???????????? = !##??????## | | ???????????? !* !##??###### """ | | ?????????????????## #####+## !###??###### """ | | ?????????????????## ? # g= %%######??## [+ """ | | ????????????????????? # g@/* ########## # | | ?????????????????## "+%=gs ########## =# """ | | ?????????????????## # # + # """ | | ?????????????????## # "T" # """ # # """ | | ?????????????????## ? # """ # """ # # ! | | ?????????????????## ? ######## ! """ # #####+## | | ????????????????????? # # # | | ???????????????????????????? # # | | ???????????????????????????? ########## | | ???????????????????????????? ##################### | | ????????????????????????????????????? ##### | | ?????????????????????????????????????????????????? | | ?????????????????????????????????????????????????? | | ?????????????????????????????????????????????????? | | ?????????????????????????????????????????????????? | | ?????????????????????????????????????????????????? | | ?????????????????????????????????????????????????? | | ?????????????????????????????????????????????????? | | ?????????????????????????????????????????????????? | | ?????????????????????????????????????????????????? | | ?????????????????????????????????????????????????? | | ?????????????????????????????????????????????????? | | ?????????????????????????????????????????????????? | | ?????????????????????????????????????????????????? | | ?????????????????????????????????????????????????? | +----------------------------------------------------+ Best States ------------- Heat Dissipation 28 Energy Generation 10 Energy Capacity 250 Matter Stores 300 Matter Capacity 300 Sight Range 16 Terrain Scan Density 10 Evasion (%) 40 Recoil Reduction 2 Item Schematics ----------------- None Robot Schematics ------------------ None Fabricated ------------ Nothing Repaired ---------- Nothing Studied --------- None Alien Tech Used ----------------- None Achievements -------------- None Challenges ------------ None Game ------ Seed ArcTerrabombReactor Manual? 0 Play Time 00:08:20 Cumulative 78.4 hours Start 2025.12.28 @ 15:49:31 End 2025.12.28 @ 16:06:33 Sessions 1 Manual Loads 0 Difficulty Rogue Special Mode None Game No. 118 Rogue 94 Adventurer 20 Explorer 4 Win Type - Total 1 Types 0/0/0/1/0/0/0/0/0/0 Lore% 45 Gallery% 42 Achievement% 32 Wizard Run 0 Options --------- Layout 1 ASCII 0 Keyboard 0 Movement Numpad Keybinds 0 Fullscreen 2 Font 24/Smallcaps Map View 50x35 Zoom Use 0% Tactical HUD 1 Map Filters NONE Filters NONE Steam 1 RUN: 68d8989b-ee9a-4e18-80f0-b1c6ec5611af